Cogmind - Beta 14 @@@ ROGUE MODE // 2024.12.05 @ 20:42:34 Player: boba1221 Result: Self-destructed Performance ------------- Evolutions (1) 500 Regions Visited (2) 400 Robots Destroyed (26) 130 Value Destroyed (699) 699 Prototype IDs (2) 40 Alien Tech Used (0) 0 Bonus (0) 0 TOTAL SCORE: 1769 Bonus ------- None Cogmind --------- Core Integrity 152/400 Matter 242/300 Energy 265/265 System Corruption 13% Temperature Cool (12) Movement Core (600) Ox11 Location -9/Materials Parts ------- > --- POWER (1) -------- Improved Ion Engine > --- PROPULSION (2) --- (None) > --- UTILITY (4) ------ Heat Sink Large Storage Unit Improved Terrain Scanner > --- WEAPON (2) ------- Beam Rifle (fused) Heavy Assault Rifle > --- INVENTORY (15) --- Aluminum Leg Aluminum Leg Heat Sink Light Assault Rifle Heavy Hammer Peak State ------------ > --- POWER ------------ Light Nuclear Core > --- PROPULSION ------- Light Treads Aluminum Leg > --- UTILITY ---------- Heat Sink Large Storage Unit Improved Terrain Scanner Light Armor Plating > --- WEAPON ----------- Heavy Hammer > --- INVENTORY -------- Improved Ion Engine Aluminum Leg Heat Sink Light Assault Rifle [Rating: 13] Favorites ----------- Power Ion Engine Engine Ion Engine Power Core Light Nuclear Core Propulsion Aluminum Leg Treads Light Treads Leg Aluminum Leg Wheel Wheel Utility Heat Sink Device Heat Sink Storage Medium Storage Unit Protection Light Armor Plating Weapon Light Assault Rifle Energy Gun Beam Rifle Ballistic Gun Light Assault Rifle Impact Weapon Heavy Hammer Build | -11 -10 -9 ------- Run | Yrd Mat Mat Slots Evolved 2 | . . 2 Power . | . . . Propulsion . | . . . Utility 2 | . . 2 Weapon . | . . . Parts Attached 31 | 7 8 16 Power 4 | 1 1 2 Engine 3 | 1 1 1 Core 1 | . . 1 Reactor . | . . . Propulsion 7 | 2 4 1 Treads 1 | . . 1 Leg 4 | . 4 . Wheel 2 | 2 . . Hover . | . . . Flight . | . . . Utility 11 | 2 2 7 Device 7 | 2 1 4 Storage 2 | . 1 1 Processor . | . . . Hackware . | . . . Protection 2 | . . 2 Artifact . | . . . Weapon 9 | 2 1 6 Energy Gun 4 | 1 . 3 Energy Cannon . | . . . Ballistic Gun 4 | 1 1 2 Ballistic Cannon . | . . . Launcher . | . . . Special Weapon . | . . . Impact Weapon 1 | . . 1 Slashing Weapon . | . . . Piercing Weapon . | . . . Special Melee Weapon . | . . . Unidentified Prototypes . | . . . Corrupted Parts 1 | . . 1 System Corruption 13 | . . 13 Parts Lost 11 | . 3 8 Power 2 | . 1 1 Propulsion 3 | . 1 2 Utility 3 | . . 3 Weapon 3 | . 1 2 Highest Loss Streak 5 | . 2 5 To Critical Strikes . | . . . Average Slot Usage (%) 86 | . 96 78 Engine 10 | . 12 8 Core 1 | . . 2 Treads 3 | . . 6 Leg 11 | . 19 6 Wheel 3 | . 7 . Device 19 | . 18 19 Storage 10 | . 9 11 Protection 3 | . . 5 Energy Gun 3 | . 2 4 Ballistic Gun 15 | . 25 8 Impact Weapon 3 | . . 5 Peak Build Rating 13 | 9 9 13 Average Rating 9 | 4 8 10 On Entrance 5 | . 9 8 Naked Turns . | . . . Heaviest Build 36 | 8 18 36 Greatest Support 20 | 20 20 20 Greatest Overweight (x) 3 | . . 3 Average Overweight (x) . | . . . Largest Inventory Capacity 15 | 5 10 15 Average Capacity 10 | 5 8 13 Most Carried 10 | . 10 9 Average Carried 5 | . 5 5 Final Capacity 15 | 5 10 15 Final Carried 10 | . 10 5 Class Distribution -------------------- 78% | Scavenger-Mutant 21% | Mutant Dominant Class ---------------- Scavenger-Mutant | -10/Materials Scavenger-Mutant | -9/Materials Resources | -11 -10 -9 ----------- Run | Yrd Mat Mat Matter Collected 537 | 254 139 144 Remotely . | . . . Salvage Created 887 | 47 401 439 Parts 52 | 3 35 14 Haulers Intercepted 1 | . . 1 Recyclers Shooed . | . . . Parts Field Recycled . | . . . Retrieved Matter . | . . . Parts Self-Destructed . | . . . Prevented . | . . . Kills | -11 -10 -9 ------- Run | Yrd Mat Mat Combat Hostiles Destroyed 19 | 1 11 7 Melee 2 | . . 2 Guns 13 | . 11 2 AOE 1 | 1 . . Classes Destroyed 7 | 2 2 3 Worker 3 | . . 3 Tunneler 1 | 1 . . Hauler 1 | . . 1 Watcher 2 | . 1 1 Swarmer 3 | . 3 . Grunt 11 | 1 8 2 Sentry 5 | . . 5 Best Kill Streak 3 | 2 3 3 Combat Bots Only 3 | 1 3 2 Max Kills in Single Turn 2 | 2 1 1 Gunslinging . | . . . Exploded 1 | 1 . . Melee 1 | . . 1 Uniques/NPCs Destroyed . | . . . Combat | -11 -10 -9 -------- Run | Yrd Mat Mat Hostile Shots Fired 169 | 7 48 114 Missed 46 | 1 13 32 Damage Taken 1567 | 66 363 1138 Core 338 | 11 79 248 Absorbed by Shields . | . . . Redirected to Shielding 44 | . . 44 Core Remaining (%) 79 | 95 64 . Volleys Fired 66 | 5 40 21 Largest 2 | 2 2 2 Hottest 85 | 60 60 85 Shots Fired 131 | 10 80 41 Gun 131 | 10 80 41 Cannon . | . . . Launcher . | . . . Special . | . . . Kinetic 94 | 5 63 26 Thermal 15 | . . 15 Explosive . | . . . Electromagnetic 22 | 5 17 . Robot Hit Streak 8 | 3 8 5 Robot Miss Streak 5 | 3 5 3 Penetration Max . | . . . Secondary Targets 3 | . 3 . Max Gunslinging Chain 1 | . 1 . Shots Hit Robots 95 | 6 45 44 Core Hits 37 | 3 23 11 Critical Kills . | . . . Critical Parts Destroyed 6 | . 1 5 Critical Strikes 8 | . 1 7 Burn 1 | . . 1 Destroy 1 | . 1 . Smash 6 | . . 6 Melee Attacks 25 | . . 25 Impact 25 | . . 25 Slashing . | . . . Piercing . | . . . Sneak Attacks 3 | . . 3 Combat Hostiles . | . . . Follow-up Attacks . | . . . Damage Inflicted 1710 | 185 438 1087 Guns 805 | 70 438 297 Cannons . | . . . Explosions 115 | 115 . . Melee 790 | . . 790 Ramming . | . . . Kinetic 524 | 25 315 184 Thermal 228 | 115 . 113 Explosive . | . . . Electromagnetic 168 | 45 123 . Impact 790 | . . 790 Slashing . | . . . Piercing . | . . . Highest Corruption 13 | . . 13 Average Corruption 13 | . . 13 Corruption Purged . | . . . Corruption Blocked . | . . . Effects 12 | . . 12 Message Errors 3 | . . 3 Matter Fused 3 | . . 3 Heat Flow Errors 2 | . . 2 Energy Discharges 1 | . . 1 Parts Fused 1 | . . 1 Data Loss (minor) 1 | . . 1 Misfires 1 | . . 1 Overload Shots . | . . . Overflow Damage 325 | 6 . 319 Projectiles . | . . . Explosions 6 | 6 . . Melee 319 | . . 319 Knockbacks 2 | . . 2 Impact 2 | . . 2 Kinetic . | . . . Secondary . | . . . Self-Inflicted Damage . | . . . Shots . | . . . Rammed . | . . . Targets Rammed . | . . . Kicked . | . . . Crushed . | . . . Highest Temperature 201 | 70 79 201 Average Temperature 33 | 41 26 40 Received Heat Transfer 666 | 36 165 465 Siege Activations . | . . . Robots Corrupted 6 | . . 6 Combat Hostiles 3 | . . 3 Parts Fried 7 | . . 7 Impact Corruptions 16 | . . 16 Robots Melted . | . . . Combat Hostiles . | . . . Parts Melted 1 | . . 1 Heat Transferred 520 | 150 . 370 Parts Sabotaged . | . . . Parts Stolen . | . . . Parts Stripped . | . . . Power Chain Reactions 1 | 1 . . Alert | -11 -10 -9 ------- Run | Yrd Mat Mat Peak Influence 223 | 25 223 161 Initial 29 | . 16 29 Average 88 | 5 132 64 Maximum Alert Level 1 | . 1 . Low Security (%) 87 | 100 67 100 Level 1 12 | . 32 . Level 2 . | . . . Level 3 . | . . . Level 4 . | . . . Level 5 . | . . . High Security . | . . . Max Security . | . . . Squads Dispatched 2 | . 2 . Investigation 2 | . 2 . Extermination . | . . . Reinforcement . | . . . Assault . | . . . Garrison . | . . . Intercept . | . . . Searches Triggered . | . . . Construction Impeded . | . . . Haulers Reinforced . | . . . Active Scanning Responses . | . . . Cargo Convoy Interrupts . | . . . Stealth | -11 -10 -9 --------- Run | Yrd Mat Mat Distress Signals 2 | . 1 1 Communications Jammed . | . . . Distress Signals . | . . . Times Spotted 36 | 1 18 17 Peak Tracking Total 5 | 1 5 5 Tactical Retreats 3 | . 3 . Traps | -11 -10 -9 ------- Run | Yrd Mat Mat Traps Triggered . | . . . Indirectly . | . . . Trap Hack Attempts . | . . . Triggered . | . . . Disarmed . | . . . Reprogrammed . | . . . Reused . | . . . Traps Extracted . | . . . Installed . | . . . Triggered . | . . . Machines | -11 -10 -9 ---------- Run | Yrd Mat Mat Machines Disabled . | . . . Max in Single Turn . | . . . Machines Repaired . | . . . Machines Dismantled . | . . . Machines Sabotaged . | . . . Overloaded Fab Kills . | . . . Hacking | -11 -10 -9 --------- Run | Yrd Mat Mat Machines Accessed 6 | . 4 2 Terminals 6 | . 4 2 Fabricators . | . . . Repair Stations . | . . . Recycling Units . | . . . Scanalyzers . | . . . Garrison Access . | . . . Total Hacks 20 | . 12 8 Successful 12 | . 7 5 Failed 8 | . 5 3 Catastrophic 1 | . 1 . Database Lockouts . | . . . Manual . | . . . Terminals 20 | . 12 8 Fabricators . | . . . Repair Stations . | . . . Recycling Units . | . . . Scanalyzers . | . . . Garrison Access . | . . . Terminal Hacks 12 | . 7 5 Record 2 | . 1 1 Prototype ID Bank 1 | . 1 . Emergency Access Points 3 | . 1 2 Alert Level 1 | . 1 . Unreport Threat 1 | . 1 . Locate Traps 1 | . . 1 Patrol Status 1 | . 1 . Investigation Status 1 | . 1 . Zone Layout 1 | . . 1 Fabricator Hacks . | . . . Repair Station Hacks . | . . . Recycling Unit Hacks . | . . . Scanalyzer . | . . . Garrison Access Hacks . | . . . Unauthorized Hacks . | . . . Terminals . | . . . Fabricators . | . . . Repair Stations . | . . . Recycling Units . | . . . Scanalyzers . | . . . Garrison Access . | . . . Data Cores Recovered . | . . . Used . | . . . Hacking Detections 6 | . 4 2 Full Trace Events 4 | . 3 1 Feedback Events . | . . . Feedback Blocked . | . . . Robot Schematics Acquired . | . . . Robots Built . | . . . Authchips . | . . . Time . | . . . Total Robot Build Rating . | . . . Part Schematics Acquired . | . . . Parts Built . | . . . Authchips . | . . . Time . | . . . Total Part Build Rating . | . . . Parts Repaired . | . . . Time . | . . . Parts Recycled . | . . . Recycled Matter . | . . . Retrieved Matter . | . . . Retrieved Components . | . . . Parts Scanalyzed . | . . . Part Schematics Acquired . | . . . Parts Damaged . | . . . Bothacking | -11 -10 -9 ------------ Run | Yrd Mat Mat Used RIF Installer . | . . . Robots Hacked . | . . . Non-combat . | . . . Combat . | . . . Robot Hacks Applied . | . . . Relay Couplers Released . | . . . Fabnet Peak Effective % . | . . . Robots Rewired . | . . . Allies Hacked . | . . . Hacks Repelled . | . . . Allies | -11 -10 -9 -------- Run | Yrd Mat Mat Total Allies . | . . . Largest Group . | . . . Highest-Rated Group . | . . . Highest-Rated Ally . | . . . Total Orders . | . . . Ally Attacks . | . . . Total Damage . | . . . Kills . | . . . Allies Corrupted . | . . . Allies Melted . | . . . Intel | -11 -10 -9 ------- Run | Yrd Mat Mat Robot Analysis Total . | . . . Derelict Logs Recovered . | . . . Drone Launches . | . . . Drone Recoveries . | . . . Exploration | -11 -10 -9 ------------- Run | Yrd Mat Mat Turns Passed 1747 | 80 678 989 Spaces Moved 993 | 78 507 408 Core 23 | 22 1 . Treads 219 | . . 219 Legs 540 | . 351 189 Wheels 211 | 56 155 . Hover . | . . . Flight . | . . . Fastest Speed 50 | 50 50 120 Average Speed 144 | 71 107 203 Slowest Speed 330 | 80 120 330 Overloaded Moves . | . . . Propulsion Burnouts . | . . . Robots Hopped . | . . . Cave-ins Triggered . | . . . Exploration Rate (%) 29 | 7 53 27 Regions Visited 2 Branch Regions . Pre-discovered Areas . | . . . Known Exits Taken . | . . . Unknown Exits Taken 2 | 1 1 . Scrap Searched . | . . . Spaces Dug 1 | . . 1 Terrain Destroyed 1 | . . 1 Melee 1 | . . 1 Projectile . | . . . AOE . | . . . Terrain Rammed . | . . . Walls Destroyed . | . . . Machines Disabled . | . . . Actions | -11 -10 -9 --------- Run | Yrd Mat Mat Total 1147 | 89 572 486 Wait 1 | . . 1 Move 991 | 77 506 408 Hop . | . . . Pick Up 15 | . 12 3 Fast Attach 18 | 7 5 6 Attach 10 | . 3 7 Detach 7 | . 2 5 Swap 3 | . . 3 Drop 11 | . 4 7 Fire 66 | 5 40 21 Melee 25 | . . 25 Ram . | . . . Kick . | . . . Crush . | . . . Escape Stasis . | . . . Rewire . | . . . Trap . | . . . Miscellaneous . | . . . Route ------- -11/Scrapyard -10/Materials (discovered 3 exits: *Mat x2 / [*Min]) -9/Materials (discovered 1 exit: [*Min]) History --------- Turn | Location | Event 2 | -11/Scrapyard | Met Revision 17 48 | -11/Scrapyard | Discovered new exit (range 8) 81 | -11/Scrapyard | Entered Materials 213 | -10/Materials | Discovered new exit (range 15) 436 | -10/Materials | Discovered new exit (range 15) 477 | -10/Materials | Discovered new exit (range 14) 581 | -10/Materials | Build established: Scavenger-Mutant 759 | -10/Materials | Entered another Materials area 759 | -9/Materials | Evolved 2 slots: Utility x2 989 | -9/Materials | Lost 5 parts (1p1n2u1w) 1375 | -9/Materials | Discovered new exit (range 16) 1489 | -9/Materials | System corruption reached 10% 1726 | -9/Materials | Core integrity fell below 50% 1748 | -9/Materials | Self-destructed Last Messages --------------- K-01 Serf cleans the Electrolysis Chamber. K-01 Serf cleans the Neutrino Reactor. K-01 Serf cleans the Electrolysis Chamber. System corrupted: Beam Rifle fused. NSY,S W System corrupted: Heat flow error (+196). K-01 Serf cleans the Electrolysis Chamber. K-01 Serf cleans the Terminal. K-01 Serf cleans the Neutrino Reactor. System corrupted: Matter fused (-7). Electrolysis Chamber disabled. G-47 Trooper suffers critical hit (Burn). G-47 Trooper heat short circuits Aluminum Leg. Lgt. Treads destroyed. Map ----- +----------------------------------------------------+ | ?????????????????????????????????????????????????? | | ?????????????????????????????????????????????????? | | ?????????????????????? ????"?????????????????????? | | ?????? ???????#??????????????????????????????????? | | ???????????????#?????????????????????????????????? | | ????????????#????#???????????????????????????????? | | ?#???????????????????????????????????????????????? | | ??????????? ????????????? ??? ???????????????????? | | ??#????? ? ??????????????? ? ?????????????????? | | ?????????? ?????????#??????? ????????????????? | | ??????????????????##???????#? #????????????????? | | ?????#?????? ###########?#??? ##???????????????? | | ?????????????# [ #????? #? ??????????????? | | ?????????????# #??#?? #????????????????? | | ?????????????# """"""" #?#??? ##???????????????? | | ???????????? # """"""" #???## ##???????? ??????? | | ?????????? ??# """"""" ##???# #???"????????????? | | ?????????? ??# """"""" #????# #????????????????? | | ????#?????#### """"""" #??### ## """"" ????????? | | ????????????## #?#??#t ## """"" ????????? | | ???????###########+########## ## """"" ?? ????? | | ?? ????# ## ? ????? | | ???????# gg k########## ????? | | ???????# t ??#?? | | ???+???# ##? | | ???????# """ """ """ @ " """ """ """ ""? | | ???????# """ """ "" "" """ """ """ Y"? | | ???? ? + """ """ """ a """ """ """ ""? | | ????? # % ### | | ??? ???# | | ???????? rk % | | ????????#############w#######"T"# ^ | | ??????????###### #"""# % ^ ###? | | ???????? + + T ###### % ^^ #??? | | ?????????? #### #??? # % ^ #??? | | ??? ?????? #??# """"" #?#? # ###### #??? | | ??????????" ##?# """"" #??### ####?? #? | | ??????????" #??# """"" #?#?# "#?? ? !#? | | ?????? ???" #??# % #??## ""#??? ??!??? | | ???????? ?" ######/##########?## ! #?????????? | | ??????????" #????# # #??# < ""#???##????? | | ?????????? #????#%# ##?# ||#??? ? ???? | | ???#??##+######### # ##?# ""#?????????? | | ??? # #??# "#???????"?? | | ??? + ##?## ####??? ?????? | | ??? # #??## #????????????? | | ????################ #?### #????????????? | | ?????????#???##???## #???# #????????????? | | ??????????#?#????#?# #???# #????????????? | | ???????#?????#?????#####+####????????????????????? | +----------------------------------------------------+ Best States ------------- Heat Dissipation 48 Energy Generation 14 Energy Capacity 265 Matter Stores 300 Matter Capacity 300 Sight Range 16 Robot Scan Range 14 Terrain Scan Range 16 Terrain Scan Density 10 Armor Coverage 150 Propulsion Shielding 33 Evasion (%) 55 Recoil Reduction 1 Item Schematics ----------------- None Robot Schematics ------------------ None Fabricated ------------ Nothing Alien Tech Used ----------------- None Achievements -------------- Everything Is Under Control Loot Pinata System Compromised Challenges ------------ None Game ------ Seed WarlordSalvagingReactor Manual? 0 Play Time 00:30:26 Cumulative 1.0 hours Start 2024.12.05 @ 12:15:45 End 2024.12.05 @ 20:42:34 Sessions 5 Manual Loads 0 Difficulty Rogue Special Mode None Game No. 2 Rogue 2 Adventurer 0 Explorer 0 Win Type - Total 0 Types 0/0/0/0/0/0/0/0/0 Lore% 0 Gallery% 3 Achievement% 3 Wizard Run 0 Options --------- Layout 0 ASCII 0 Keyboard 1 Movement Arrows Keybinds 0 Fullscreen 1 Font 18/SmallcapsGlow Map View 76x50 Zoom Use 0% Tactical HUD 0 Map Filters NONE Filters NONE Steam 0 RUN: 31979a93-e4dc-47d6-81df-fd9be760a648